bitfinex/quotes_ETHUSD_20260126
["timestamp","ask_amount","ask_price","bid_price","bid_amount"]
[1769437907786,0.128,2883.6,2881.9,12.78902226]
[1769437907950,0.128,2883.4,2882.0,1.22890223]
[1769437908145,0.128,2883.0,2881.3,12.78902226]
[1769437908567,0.128,2882.8,2881.3,12.78902226]
[1769437908768,0.128,2883.4,2881.3,12.78902226]
[1769437909082,0.128,2883.2,2881.4,1.27890223]
[1769437909298,8.428807,2883.1,2881.4,1.27890223]
[1769437909463,12.78103661,2883.5,2881.4,1.27890223]
[1769437909781,0.128,2883.4,2881.4,14.77562968]
[1769437910679,9.770125,2884.6,2881.6,13.49672745]
[1769437910880,0.86665109,2884.7,2881.8,13.49672745]
[1769437911101,3.642502,2885.0,2882.2,13.49672745]
[1769437911384,9.070681,2885.0,2882.2,13.49672745]
[1769437911682,3.46608436,2885.4,2882.2,13.49672745]
[1769437911683,0.001,2885.5,2882.4,13.49672745]
[1769437911849,0.001,2885.5,2882.6,13.49672745]
[1769437911850,3.476194,2885.4,2882.6,13.49672745]
[1769437912050,3.476194,2885.4,2883.0,13.49672745]
[1769437912250,0.001,2885.5,2883.4,13.49672745]
[1769437912482,0.18075714,2886.6,2884.0,13.49672745]
[1769437912683,0.17867059,2886.7,2884.6,13.49672745]
[1769437912851,0.1807256,2887.4,2885.0,13.49672745]
[1769437913047,0.1807256,2887.4,2885.1,0.2335703]
[1769437913251,0.001,2887.8,2885.2,13.49672745]
[1769437913476,0.001,2887.8,2885.4,13.49672745]
[1769437913477,0.86672299,2887.8,2885.4,13.49672745]
[1769437913696,0.86672299,2887.8,2884.7,14.8464002]
[1769437913697,29.031899,2887.4,2884.7,14.8464002]
[1769437913991,9.898796,2887.4,2884.8,1.48464002]
[1769437914188,0.128,2887.4,2884.9,13.49672745]
[1769437914389,0.128,2887.2,2884.9,13.49672745]
[1769437914573,0.128,2887.4,2885.0,0.727]
[1769437914886,0.128,2887.4,2885.1,1.42237275]
[1769437915188,0.128,2887.0,2885.1,1.42237275]
[1769437915355,0.128,2887.0,2885.1,14.9191002]
[1769437915854,7.356695,2886.9,2883.9,13.49672745]
[1769437916056,0.128,2886.6,2883.9,13.49672745]
[1769437916254,0.128,2886.8,2884.2,13.49672745]
[1769437916451,0.8659808,2886.9,2884.2,13.49672745]
[1769437916681,0.128,2886.6,2884.4,13.49672745]
[1769437917070,0.128,2886.2,2884.4,13.49672745]
[1769437917277,0.128,2886.7,2884.4,13.49672745]
[1769437917507,0.128,2886.7,2884.8,13.49672745]
[1769437917713,0.001,2887.8,2885.0,13.49672745]
[1769437917856,0.001,2887.8,2885.4,13.49672745]
[1769437918695,6.243475,2887.7,2885.5,0.727]
[1769437918997,0.001,2887.8,2885.5,14.22372745]
[1769437919178,3.497176,2887.7,2885.5,14.22372745]
[1769437919370,0.128,2887.6,2885.5,14.22372745]
[1769437919572,0.128,2887.6,2885.6,1.42237275]
[1769437919978,0.128,2887.6,2885.6,13.49672745]
[1769437920290,3.885,2887.5,2885.6,13.49672745]
[1769437920491,0.128,2887.2,2885.2,0.727]
[1769437920666,0.128,2887.2,2885.2,14.22372745]
[1769437920864,0.50681652,2888.4,2886.1,0.2335703]
[1769437921062,3.64201751,2889.1,2886.6,13.49672745]
[1769437921063,0.18070188,2889.1,2886.6,13.49672745]
[1769437921284,0.128,2888.7,2886.8,13.49672745]
[1769437921486,0.128,2888.5,2886.8,13.49672745]
[1769437921698,3.441734,2888.2,2886.0,0.727]
[1769437921998,0.128,2888.0,2886.1,1.42237275]
[1769437922386,0.128,2887.8,2886.1,1.42237275]
[1769437922588,0.128,2888.1,2885.9,13.49672745]
[1769437923094,0.128,2888.1,2885.9,14.36298759]
[1769437923303,0.001,2888.2,2886.3,13.49672745]
[1769437923794,0.001,2888.2,2886.5,13.49672745]
[1769437924165,0.001,2888.2,2886.7,13.49672745]
[1769437924366,0.001,2888.2,2886.8,14.9191002]
[1769437924696,0.001,2888.2,2886.1,13.49672745]
[1769437925004,0.001,2888.2,2885.4,0.2335703]
[1769437925005,11.673901,2888.1,2885.4,13.49672745]
[1769437925303,0.128,2887.6,2884.9,0.726]
[1769437925603,41.15543461,2887.7,2884.9,0.726]
[1769437925604,10.094399,2887.1,2884.9,14.22272745]
[1769437925774,12.78103661,2887.7,2884.9,14.22272745]
[1769437925982,0.128,2887.3,2885.0,1.42227275]
[1769437926297,0.128,2887.1,2885.0,1.42227275]
[1769437927172,0.128,2887.3,2885.0,1.42227275]
[1769437927373,0.86577088,2887.6,2885.0,1.42227275]
[1769437927374,0.128,2886.9,2885.0,1.42227275]
[1769437927573,0.128,2886.9,2885.1,1.49190002]
[1769437927967,3.786606,2888.1,2885.4,13.49672745]
[1769437928180,3.786606,2888.1,2885.5,0.726]
[1769437928181,16.68957,2887.9,2885.5,0.726]
[1769437928389,11.868271,2887.4,2885.1,1.49190002]
[1769437928591,11.868271,2887.4,2884.2,0.2335703]
[1769437928592,30.0,2887.1,2883.5,13.49672745]
[1769437928798,0.128,2886.3,2883.5,13.49672745]
[1769437929074,0.128,2885.9,2883.5,13.49672745]
[1769437929268,12.90903661,2886.1,2883.5,13.49672745]
[1769437929269,3.146948,2885.6,2883.5,13.49672745]
[1769437929493,0.128,2885.7,2883.7,13.49672745]
[1769437929803,0.128,2885.7,2883.8,1.34967275]
[1769437930300,25.639155,2885.6,2883.8,1.34967275]
[1769437930504,4.883329,2885.3,2883.1,13.49672745]
[1769437930699,0.128,2885.4,2883.3,14.36378551]
[1769437931201,3.46448428,2886.5,2883.1,3.46848264]
[1769437931202,13.64701741,2886.9,2883.8,14.36363067]
[1769437931390,0.128,2886.4,2883.8,14.36363067]
[1769437931592,0.128,2886.4,2883.9,16.00585604]
[1769437931793,0.128,2886.2,2883.9,16.00585604]
[1769437931998,0.128,2885.7,2883.9,15.27985604]
[1769437932195,0.128,2885.5,2883.9,1.78312859]
[1769437932382,0.128,2885.7,2883.6,14.22272745]
[1769437932703,0.128,2885.9,2883.6,15.08968183]
[1769437932908,12.047462,2886.8,2884.0,13.49672745]
[1769437933076,0.128,2886.5,2884.0,13.49672745]
[1769437933272,0.128,2886.1,2884.0,14.22272745]
[1769437933505,0.128,2886.1,2884.1,14.9190002]
[1769437934205,0.128,2886.1,2884.2,14.36351893]
[1769437934399,0.128,2886.1,2884.2,13.49672745]
[1769437934786,0.128,2886.1,2884.2,14.22272745]
[1769437935810,0.128,2886.5,2884.2,14.22272745]
[1769437936010,0.128,2886.5,2884.4,13.49672745]
[1769437936313,0.128,2886.5,2884.4,14.3634524]
[1769437936502,0.86579028,2887.6,2884.8,13.49672745]
[1769437936702,12.78103661,2888.1,2885.0,13.49672745]
[1769437936703,12.78103661,2887.8,2885.0,13.49672745]
[1769437937011,12.78103661,2887.8,2884.5,0.2335703]
[1769437937012,0.128,2886.6,2884.3,1.65137971]
[1769437937211,12.78103661,2886.7,2884.1,13.49872745]
[1769437937212,0.128,2886.2,2884.1,13.49872745]
[1769437937517,0.128,2886.0,2884.3,13.49672745]
[1769437937812,0.128,2886.0,2884.3,14.36348508]
[1769437938017,0.128,2886.0,2884.3,13.49672745]
[1769437938605,0.128,2886.2,2884.3,13.49672745]
[1769437938801,0.128,2886.2,2884.4,14.17345353]
[1769437939517,30.0,2887.8,2884.4,15.04018491]
[1769437939815,33.19566215,2887.4,2884.6,12.82378078]
[1769437940017,16.691406,2887.1,2884.6,12.82378078]
[1769437940183,15.870248,2886.9,2884.7,1.28237808]
[1769437940382,15.341472,2886.8,2884.7,1.28237808]
[1769437940617,13.09487815,2886.3,2884.4,1.34967275]
[1769437940911,18.599734,2886.2,2884.0,12.72211624]
[1769437941114,2.035775,2886.2,2884.0,12.72211624]
[1769437941306,0.128,2886.3,2884.6,12.82378078]
[1769437941815,13.09487815,2886.9,2884.6,12.82378078]
[1769437942020,0.128,2886.5,2884.7,1.28237808]
[1769437942622,0.86568094,2887.9,2884.8,0.2335703]
[1769437942826,0.001,2888.2,2885.3,12.82378078]
[1769437943118,0.001,2888.2,2885.7,12.82378078]
[1769437943288,0.001,2888.2,2885.9,12.82378078]
[1769437943493,0.129,2888.0,2886.0,1.35497808]
[1769437943688,0.128,2887.6,2886.0,1.35497808]
[1769437943901,0.128,2887.6,2885.5,0.726]
[1769437944289,0.128,2887.0,2884.7,14.10615886]
[1769437944492,0.128,2887.0,2884.8,13.54978078]
[1769437944709,0.128,2887.0,2885.0,12.82378078]
[1769437944916,0.128,2887.0,2885.1,0.726]
[1769437945491,0.128,2887.4,2885.1,0.726]
[1769437945793,0.128,2887.4,2885.0,12.82378078]
[1769437945794,4.60038134,2888.8,2885.5,0.86640049]
[1769437945998,4.60038134,2888.8,2885.6,12.82378078]
[1769437945999,0.86665148,2888.0,2885.6,12.82378078]
[1769437946204,3.26616741,2887.9,2885.8,12.82378078]
[1769437946404,0.86568223,2887.9,2885.9,0.726]
[1769437946898,0.86568223,2887.9,2885.9,13.54978078]
[1769437946899,5.09187,2887.9,2885.9,13.54978078]
[1769437947221,3.15687,2887.9,2885.9,13.54978078]
[1769437947393,0.001,2888.0,2885.9,13.54978078]
[1769437947598,0.001,2887.8,2886.1,12.82378078]
[1769437950216,0.001,2887.8,2884.9,11.87280265]
[1769437950217,30.0,2887.5,2885.4,12.82378078]
[1769437950429,0.128,2887.3,2885.4,12.82378078]
[1769437950941,0.128,2887.3,2884.9,14.30699667]
[1769437951140,0.128,2887.3,2885.1,12.82378078]
[1769437951354,0.128,2887.1,2885.1,12.82378078]
[1769437951554,0.128,2886.9,2885.1,12.82378078]
[1769437951739,0.128,2887.3,2885.0,1.50329967]
[1769437952047,0.128,2887.1,2884.8,13.54978078]
[1769437952213,0.128,2886.7,2884.8,13.54978078]
[1769437952416,0.128,2886.8,2884.9,0.726]
[1769437952628,0.128,2886.8,2884.9,13.54978078]
[1769437953139,0.128,2887.6,2885.1,12.82378078]
[1769437953317,0.128,2887.6,2884.9,0.726]
[1769437953318,0.128,2887.4,2885.3,12.82378078]
[1769437953518,0.128,2887.7,2885.3,12.82378078]
[1769437953714,0.128,2887.3,2885.2,1.28237808]
[1769437953923,0.128,2887.1,2884.9,0.726]
[1769437954146,0.128,2886.7,2884.1,13.69058526]
[1769437954440,0.128,2886.5,2884.1,13.69058526]
[1769437954834,0.128,2886.5,2884.1,12.82378078]
[1769437955140,0.128,2886.5,2884.3,12.82378078]
[1769437955544,10.238644,2886.5,2884.3,12.82378078]
[1769437955918,0.128,2886.2,2884.3,12.82378078]
[1769437956119,0.86604312,2886.7,2884.3,12.82378078]
[1769437956120,0.128,2886.6,2884.3,12.82378078]
[1769437956319,0.128,2886.4,2884.3,12.82378078]
[1769437956545,0.128,2886.4,2884.4,14.24306502]
[1769437957049,0.128,2886.0,2884.4,1.41928424]
[1769437957347,0.128,2886.0,2884.0,12.82378078]
[1769437957545,0.128,2885.8,2884.0,12.82378078]
[1769437957739,0.128,2886.2,2884.0,12.82378078]
[1769437958422,0.86622085,2886.1,2884.0,12.82378078]
[1769437958647,0.128,2885.9,2884.0,12.82378078]
[1769437958947,0.128,2885.7,2883.9,0.002]
[1769437959723,0.128,2885.7,2883.9,12.82578078]
[1769437960053,0.128,2885.8,2883.9,12.82578078]
[1769437960738,0.128,2885.8,2883.9,13.69266102]
[1769437960929,0.128,2885.8,2883.9,12.82578078]
[1769437961130,0.128,2885.7,2884.0,1.28257808]
[1769437961332,0.128,2885.7,2883.5,0.726]
[1769437961654,30.0,2887.6,2884.3,12.82378078]
[1769437961864,12.96687815,2887.3,2884.2,0.726]
[1769437962020,12.96687815,2886.7,2883.9,12.82378078]
[1769437962227,30.0,2886.2,2883.9,12.82378078]
[1769437962427,16.324565,2886.6,2884.0,14.10615886]
[1769437962650,0.86608808,2886.6,2884.0,14.97298042]
[1769437963530,0.128,2886.5,2884.0,14.97298042]
[1769437963961,0.128,2886.3,2884.0,14.10615886]
[1769437964154,6.788538,2886.4,2884.0,14.10615886]
[1769437964155,6.675795,2886.0,2884.0,14.10615886]
[1769437964454,2.120333,2886.0,2884.1,1.41061589]
[1769437964653,0.99423149,2886.1,2884.1,1.41061589]
[1769437964855,3.798367,2886.0,2884.1,1.41061589]
[1769437965259,3.798367,2886.0,2883.6,0.86697092]
[1769437965756,3.798367,2886.0,2883.4,16.2919083]
[1769437965959,2.030883,2886.0,2883.8,0.86688973]
[1769437966267,0.128,2886.4,2884.1,12.82378078]
[1769437966561,0.128,2886.0,2884.1,12.82378078]
[1769437966782,0.128,2886.0,2884.2,1.28237808]
[1769437967776,8.949171,2886.4,2884.2,14.10615886]
[1769437967978,18.64006,2886.3,2884.2,14.10615886]
[1769437968179,13.8329816,2886.5,2884.2,1.28237808]
[1769437968180,0.128,2886.0,2884.2,1.28237808]
[1769437968381,18.640791,2885.9,2883.8,0.726]
[1769437968677,0.128,2885.8,2883.8,0.726]
[1769437968872,0.128,2886.0,2883.8,0.726]
[1769437969177,0.128,2886.0,2883.5,16.29177228]
[1769437969178,0.128,2885.8,2883.5,12.82378078]
[1769437969381,0.128,2885.4,2882.9,14.6041436]
[1769437969587,13.36118376,2885.6,2883.0,1.46041436]
[1769437969588,0.128,2885.2,2883.0,1.46041436]
[1769437969737,3.061,2886.9,2884.5,13.8781436]
[1769437969937,14.529632,2887.4,2884.7,13.8781436]
[1769437970237,12.623663,2887.3,2884.8,1.47321436]
[1769437970544,14.22716456,2886.9,2884.8,1.47321436]
[1769437970740,12.686587,2886.8,2884.2,0.726]
[1769437971063,7.581414,2886.6,2884.1,13.8781436]
[1769437971262,5.145414,2886.6,2884.1,13.8781436]
[1769437971665,0.128,2886.3,2884.1,13.8781436]
[1769437972036,0.128,2885.8,2883.5,13.8781436]
[1769437972231,0.128,2885.8,2882.7,0.002]
[1769437972232,0.128,2885.6,2883.6,1.38781436]
[1769437972452,13.36118376,2886.0,2882.9,14.6041436]
[1769437972453,0.128,2885.9,2882.9,14.6041436]
[1769437972660,0.128,2885.7,2882.9,15.47131973]
[1769437972860,4.761879,2885.4,2882.9,14.6041436]
[1769437973067,0.128,2885.3,2882.9,14.6041436]
[1769437973232,0.128,2885.3,2882.9,13.8781436]
[1769437973452,0.128,2885.3,2883.0,2.11381436]
[1769437974051,0.128,2885.2,2883.0,2.11381436]
[1769437974249,0.128,2885.0,2883.0,1.38781436]
[1769437974562,0.86670133,2884.5,2883.0,1.38781436]
[1769437974764,0.86670133,2884.5,2882.7,0.002]
[1769437974964,0.128,2884.6,2882.7,13.8801436]
[1769437975336,3.46457973,2886.4,2883.2,13.8781436]
[1769437975535,3.46457973,2886.4,2883.6,13.8781436]
[1769437975837,3.46457973,2886.4,2883.8,13.8781436]
[1769437975838,4.127114,2886.2,2883.8,13.8781436]
[1769437976165,30.0,2885.8,2882.7,13.8801436]
[1769437976340,13.073984,2885.6,2882.7,13.8801436]
[1769437976535,0.86640097,2885.5,2883.1,13.8781436]
[1769437976742,0.86640097,2885.5,2883.2,15.35267301]
[1769437976743,0.43320049,2885.4,2883.2,15.35267301]
[1769437977270,0.128,2885.3,2883.2,15.35267301]
[1769437977444,0.128,2885.3,2883.2,1.47452941]
[1769437977644,0.128,2885.3,2883.0,13.8781436]
[1769437978438,13.36118376,2887.3,2883.2,0.86709211]
[1769437978637,13.36118376,2887.3,2883.1,17.58008237]
[1769437978638,3.46368457,2887.1,2884.6,13.8781436]
[1769437978842,0.86705729,2886.7,2884.6,13.8781436]
[1769437979068,0.001,2886.7,2884.6,13.8781436]
[1769437979269,0.001,2886.7,2884.8,13.8781436]
[1769437981562,0.001,2886.7,2884.7,1.38781436]
[1769437981563,6.6421,2886.6,2884.7,1.38781436]
[1769437981751,0.001,2886.7,2884.4,14.6051436]
[1769437982076,0.001,2886.7,2884.4,15.47186926]
[1769437982294,0.001,2886.7,2884.8,14.74473877]
[1769437982499,0.001,2886.7,2885.0,13.8781436]
[1769437982711,0.001,2886.7,2885.2,13.8781436]
[1769437982849,0.001,2887.8,2885.4,13.8781436]
[1769437984791,0.001,2887.8,2885.9,13.8781436]
[1769437985474,0.001,2887.8,2885.4,0.86642773]
[1769437985669,0.001,2887.8,2885.4,14.74457133]
[1769437987452,0.001,2887.8,2885.5,0.2335703]
[1769437987652,0.001,2887.8,2885.6,15.37595776]
[1769437989285,0.001,2887.8,2885.7,0.86634092]
[1769437989486,0.001,2887.8,2885.7,14.74448452]
[1769437990570,0.001,2887.8,2885.7,13.8781436]
[1769437991262,0.001,2887.8,2885.9,13.8781436]
[1769437991480,0.001,2887.8,2885.8,0.8663109]
[1769437991481,0.001,2887.8,2886.3,13.8781436]
[1769437991985,0.001,2887.8,2886.2,0.726]
[1769437992872,0.001,2887.8,2886.2,14.6041436]
[1769437994884,0.001,2887.8,2886.2,0.726]
[1769437995081,0.001,2887.8,2886.1,0.002]
[1769437995082,14.212003,2887.5,2886.1,0.002]
[1769437995264,0.128,2887.4,2886.1,0.002]
[1769437995459,0.128,2887.2,2886.1,0.002]
[1769437996660,0.128,2887.3,2886.1,0.002]
[1769437996865,0.001,2887.6,2886.2,13.8781436]
[1769437997494,0.001,2887.6,2886.1,0.002]
[1769437999097,0.001,2887.6,2886.1,13.17516144]
[1769437999396,0.001,2887.6,2886.2,1.31751614]
[1769437999567,0.001,2887.6,2886.1,0.002]
[1769438002467,0.001,2887.6,2886.1,13.17516144]
[1769438003898,0.001,2887.6,2886.3,13.17316144]
[1769438004266,0.001,2887.8,2886.5,13.17316144]
[1769438004702,0.001,2888.0,2886.5,13.17316144]
[1769438004920,0.001,2888.2,2886.7,13.17316144]
[1769438005701,0.001,2888.2,2886.6,1.40392923]
[1769438006002,0.001,2888.2,2886.1,13.90116144]
[1769438006200,0.86659102,2888.2,2886.1,13.90116144]
[1769438006571,0.001,2888.2,2886.1,13.17516144]
[1769438007404,0.001,2888.2,2886.2,0.2335703]
[1769438007605,0.001,2888.2,2886.6,0.2335703]
[1769438007800,0.0008,2889.2,2886.8,13.17316144]
[1769438008020,0.0008,2889.2,2886.6,0.2335703]
[1769438008021,0.86537289,2889.0,2887.0,13.17316144]
[1769438008216,0.001,2887.4,2887.0,13.17316144]
[1769438008538,0.1288,2889.2,2887.0,13.89916144]
[1769438009756,0.128,2888.4,2886.3,0.002]
[1769438010029,0.128,2888.2,2886.3,0.002]
[1769438010533,5.147104,2888.0,2886.3,0.002]
[1769438010700,0.86562099,2888.1,2886.3,0.002]
[1769438011724,3.713864,2888.0,2886.3,0.002]
[1769438012229,0.86562099,2888.1,2886.3,0.002]
[1769438012438,0.36664971,2887.9,2886.3,0.002]
[1769438012604,0.86562099,2888.1,2886.3,0.002]
[1769438012800,0.4456105,2888.0,2886.3,0.002]
[1769438013006,14.69967988,2888.5,2886.3,13.17516144]
[1769438013334,3.230198,2888.3,2886.3,13.17516144]
[1769438013544,3.029328,2888.2,2886.3,13.17516144]
[1769438013835,0.128,2888.1,2886.3,0.002]
[1769438014335,0.86565096,2888.0,2886.3,0.002]
[1769438014500,0.44562548,2887.9,2886.3,0.002]
[1769438014909,0.81227519,2887.9,2886.3,0.002]
[1769438015145,0.36664971,2887.8,2886.3,0.002]
[1769438015745,0.44562548,2887.9,2886.3,0.002]
[1769438016644,13.8341488,2887.7,2886.3,0.002]
[1769438016845,13.9621488,2887.2,2885.1,13.17316144]
[1769438017053,0.002,2886.3,2884.9,0.002]
[1769438017216,13.9621488,2886.8,2884.9,0.002]
[1769438017556,0.128,2886.2,2883.9,13.17316144]
[1769438017709,0.128,2886.3,2883.9,14.04002875]
[1769438017913,0.128,2886.3,2884.1,13.17316144]
[1769438018418,13.8341488,2886.6,2884.6,13.17316144]
[1769438018419,0.128,2886.5,2884.6,13.17316144]
[1769438018742,0.128,2886.5,2884.7,1.31731614]
[1769438018743,0.128,2886.3,2884.7,1.31731614]
[1769438018921,4.314683,2886.2,2884.7,1.31731614]
[1769438019121,4.314683,2886.2,2883.8,13.17316144]
[1769438019741,0.128,2886.0,2883.8,13.17316144]
[1769438019924,0.128,2885.8,2883.8,13.17316144]
[1769438020323,0.128,2885.6,2883.4,0.726]
[1769438020514,0.99434092,2885.7,2883.4,0.726]
[1769438020717,0.128,2885.5,2883.4,0.726]
[1769438021062,2.691422,2885.5,2883.4,0.726]
[1769438021548,13.8341488,2885.6,2883.3,0.002]
[1769438021749,9.803425,2884.7,2882.7,0.002]
[1769438021950,0.128,2884.6,2882.7,0.002]
[1769438022659,0.128,2884.5,2882.7,0.002]
[1769438024643,0.128,2884.3,2882.7,0.002]
[1769438025659,13.9621488,2884.3,2882.7,0.002]
[1769438026762,0.128,2884.1,2882.7,0.002]
[1769438027344,0.128,2884.2,2882.7,0.002]
[1769438027555,13.8341488,2887.5,2882.9,10.02464291]
[1769438027757,12.79707578,2887.1,2884.7,0.128]
[1769438027980,13.8341488,2886.8,2883.1,0.2335703]
[1769438028132,13.8341488,2886.6,2883.4,0.2335703]
[1769438028334,1.84944763,2886.5,2883.9,0.3615703]
[1769438028570,0.86590591,2887.2,2883.9,10.15581321]
[1769438028571,13.36667704,2887.2,2883.9,10.15581321]
[1769438028775,13.36767704,2887.7,2884.5,10.15581321]
[1769438028938,14.23344188,2887.7,2884.5,10.15581321]
[1769438029248,14.2334209,2887.7,2884.5,10.15581321]
[1769438029637,13.49467704,2887.6,2884.5,10.15581321]
[1769438030050,0.001,2887.7,2885.2,0.2335703]
[1769438030248,13.36667704,2889.0,2885.8,0.2335703]
[1769438030499,3.46749369,2889.3,2885.8,0.2335703]
[1769438030500,13.36667704,2888.8,2885.8,16.95117676]
[1769438030652,13.36667704,2888.8,2886.2,0.2335703]
[1769438031672,14.23208833,2888.8,2886.2,0.2335703]
[1769438031867,14.23209476,2888.8,2886.2,0.2335703]
[1769438032180,14.23209476,2888.8,2886.0,3.4648834]
[1769438032181,14.43735801,2888.7,2886.0,1.59224971]
[1769438032484,0.001,2887.7,2886.0,1.59224971]
[1769438032863,0.001,2887.7,2886.0,0.726]
[1769438033066,0.001,2887.7,2886.0,1.59224769]
[1769438033459,0.001,2887.7,2886.1,0.50572511]
[1769438033850,0.001,2887.7,2886.0,1.59224533]
[1769438034074,0.001,2887.7,2885.4,0.2335703]
[1769438034263,0.001,2887.7,2885.5,4.19158603]
[1769438034461,0.001,2887.7,2885.7,0.86632185]
[1769438034667,0.001,2887.7,2885.6,3.46548072]
[1769438034983,13.36767704,2887.7,2885.7,0.50578517]
[1769438035188,13.36767704,2887.7,2885.6,0.86637094]
[1769438035396,13.36767704,2887.7,2885.5,0.726]
[1769438035556,13.36767704,2887.7,2885.5,1.5923985]
[1769438036053,0.001,2887.7,2885.6,0.2335703]
[1769438036778,0.001,2887.7,2885.7,0.86634092]
[1769438036951,13.36767704,2887.7,2885.8,1.15917046]
[1769438037898,0.001,2887.7,2885.9,0.2335703]
[1769438038312,13.36667704,2888.4,2885.9,0.2335703]
[1769438038458,0.001,2888.9,2885.9,0.2335703]
[1769438038776,0.128,2888.8,2886.1,0.2335703]
[1769438038973,13.36667704,2888.8,2886.2,1.08920641]
[1769438039162,13.36667704,2888.8,2886.3,0.2335703]
[1769438039372,13.36667704,2888.8,2886.0,0.86625086]
[1769438039373,13.36667704,2888.6,2886.1,0.2335703]
[1769438039556,13.36667704,2888.6,2885.9,0.86626231]
[1769438039756,13.36667704,2888.6,2886.0,0.726]
[1769438039958,13.36667704,2888.4,2886.0,0.726]
[1769438040155,13.36667704,2888.2,2886.0,0.726]
[1769438040558,13.36667704,2888.2,2886.0,1.59225086]
[1769438041889,13.36667704,2888.2,2886.0,1.59223885]
[1769438042188,13.36667704,2888.0,2885.3,3.654]
[1769438042375,13.36667704,2887.8,2885.9,0.86627891]
[1769438042560,13.36667704,2887.8,2885.6,0.86635834]
[1769438042762,3.46236217,2888.3,2885.4,1.0914]
[1769438042763,13.36667704,2887.6,2885.4,1.23181601]
[1769438042986,13.36667704,2887.4,2885.4,1.23181601]
[1769438043288,13.74130646,2887.4,2885.4,1.23181601]
[1769438043489,13.36667704,2887.4,2885.5,0.5423626]
[1769438043864,13.36667704,2887.2,2885.5,0.5423626]
[1769438044192,13.36667704,2887.0,2885.4,0.8664205]
[1769438044391,0.39604681,2886.9,2885.4,0.8664205]
[1769438044592,1.35528872,2887.8,2885.4,0.8664205]
[1769438044593,13.36667704,2887.6,2885.4,0.8664205]
[1769438044794,13.36667704,2887.6,2885.2,3.46572398]
[1769438045008,13.36667704,2887.6,2885.2,0.128]
[1769438045213,13.36667704,2887.4,2885.3,0.3593724]
[1769438045681,13.76272385,2887.4,2885.3,0.3593724]
[1769438046696,13.36667704,2887.2,2885.4,0.86643099]
[1769438047005,13.76272385,2887.8,2885.4,0.86643099]
[1769438047678,13.36667704,2887.8,2885.4,0.86643099]
[1769438047878,13.36667704,2887.8,2885.5,0.83455274]
[1769438048205,13.76272385,2887.7,2885.5,0.83455274]
[1769438048408,13.36667704,2887.7,2885.5,0.83455274]
[1769438048904,13.76272385,2887.7,2885.6,0.86637094]
[1769438049305,13.36667704,2887.7,2885.6,0.86637094]
[1769438049505,13.36667704,2887.7,2885.7,0.51664075]
[1769438049710,13.36667704,2887.5,2885.7,0.51664075]
[1769438049907,13.76272385,2887.5,2885.7,0.51664075]
[1769438050105,13.36667704,2887.5,2885.7,0.51664075]
[1769438050311,0.39604681,2887.8,2885.8,0.2335703]
[1769438050493,0.001,2888.0,2886.0,0.2335703]
[1769438050694,0.001,2888.0,2885.9,1.0542454]
[1769438050695,13.36767704,2888.0,2885.9,1.0542454]
[1769438050909,13.36767704,2888.0,2886.2,0.86619083]
[1769438051705,13.85625096,2887.9,2886.1,1.59221994]
[1769438051898,14.25229777,2887.9,2886.1,1.59221904]
[1769438052110,13.36667704,2887.9,2886.1,1.59221904]
[1769438052409,13.36667704,2887.9,2886.1,0.726]
[1769438052994,13.76272385,2887.8,2886.1,1.59221919]
[1769438053715,13.36667704,2887.8,2886.1,1.59221919]
[1769438054113,13.76272385,2887.8,2886.1,1.59221919]
[1769438054325,0.001,2888.0,2886.2,10.2979627]
[1769438054528,13.36767704,2888.9,2886.3,13.67981321]
[1769438054741,0.0008,2889.2,2886.5,9.53423929]
[1769438055032,0.0008,2889.2,2887.2,4.51989082]
[1769438055183,0.001,2890.0,2887.5,0.2335703]
[1769438055390,0.001,2890.0,2887.7,0.2335703]
[1769438055585,0.001,2890.0,2887.9,0.2335703]
[1769438055803,13.36767704,2890.0,2887.6,0.38875703]
[1769438056087,13.36767704,2890.0,2888.0,0.726]
[1769438056820,13.36667704,2889.6,2887.1,0.86590787]
[1769438057022,13.36667704,2889.4,2887.0,0.726]
[1769438057339,13.36767704,2890.0,2887.1,0.2335703]
[1769438057489,0.001,2890.0,2887.5,9.53343929]
[1769438057830,13.36767704,2890.0,2887.5,0.2335703]
[1769438058331,14.23273994,2890.0,2887.5,0.2335703]
[1769438058499,13.36227874,2889.9,2887.3,0.2335703]
[1769438059005,13.36227874,2889.9,2887.4,0.86583085]
[1769438059191,13.36227874,2889.9,2887.5,0.2335703]
[1769438059818,0.001,2890.0,2887.5,9.53343929]
[1769438060028,0.001,2890.0,2887.7,9.53343929]
[1769438060294,0.001,2890.0,2888.0,9.66143929]
[1769438060528,0.0008,2890.1,2888.0,9.66143929]
[1769438060934,0.0008,2890.1,2888.2,0.3615703]
[1769438061306,0.0008,2890.1,2888.2,0.2335703]
[1769438061709,0.0008,2891.0,2888.9,0.2335703]
[1769438061950,0.001,2891.4,2889.4,0.2335703]
[1769438062104,1.24777659,2891.5,2889.8,0.2335703]
[1769438062298,0.0008,2891.9,2890.0,7.15714639]
[1769438062512,13.36227874,2892.5,2890.2,0.2335703]
[1769438062806,0.001,2893.7,2890.8,8.4072627]
[1769438063001,0.001,2893.7,2891.2,0.3615703]
[1769438063318,0.001,2893.7,2891.1,0.86472276]
[1769438063319,0.0008,2895.3,2892.6,0.02076268]
[1769438063499,0.18061861,2895.9,2893.7,0.02076268]
[1769438063697,13.36307874,2896.2,2893.8,0.2335703]
[1769438063904,0.0008,2896.2,2894.3,0.02076268]
[1769438064139,3.0281554,2898.7,2894.9,0.14876268]
[1769438064140,13.36227874,2897.7,2894.9,0.14876268]
[1769438064310,0.0008,2898.4,2895.3,0.14876268]
[1769438064518,0.0008,2898.4,2895.8,0.2335703]
[1769438064702,0.0008,2898.4,2895.8,0.128]
[1769438064909,13.36227874,2898.3,2896.0,0.86325966]